Cogmind - Beta 14 @@@ ROGUE MODE // 2024.10.26 @ 21:00:16 Player: canerib Result: Self-destructed Performance ------------- Evolutions (1) 500 Regions Visited (2) 400 Robots Destroyed (28) 140 Value Destroyed (795) 795 Prototype IDs (0) 0 Alien Tech Used (0) 0 Bonus (0) 0 TOTAL SCORE: 1835 Bonus ------- None Cogmind --------- Core Integrity 220/400 Matter 205/300 Energy 99/100 System Corruption 0% Temperature Cool (0) Movement Core (250) Ox4 Location -9/Materials Parts ------- > --- POWER (1) -------- (None) > --- PROPULSION (4) --- (None) > --- UTILITY (2) ------ Medium Storage Unit Seismic Detector > --- WEAPON (2) ------- Beam Rifle Mini Grenade Launcher > --- INVENTORY (10) --- Ion Engine Heat Sink Improved Terrain Scanner Peak State ------------ > --- POWER ------------ Ion Engine > --- PROPULSION ------- Hover Unit Hover Unit Hover Unit > --- UTILITY ---------- Medium Storage Unit Seismic Detector > --- WEAPON ----------- EM Pulse Gun Particle Gun > --- INVENTORY -------- Ion Engine Hover Unit Heat Sink Improved Terrain Scanner Small Laser Mini Grenade Launcher Mining Laser [Rating: 10] Favorites ----------- Power Ion Engine Engine Ion Engine Propulsion Aluminum Leg Leg Aluminum Leg Hover Unit Hover Unit Utility Seismic Detector Device Seismic Detector Storage Small Storage Unit Weapon EM Pulse Gun Energy Gun EM Pulse Gun Ballistic Gun Assault Rifle Launcher Mini Grenade Launcher Special Weapon Mining Laser Build | -11 -10 -9 ------- Run | Yrd Mat Mat Slots Evolved 2 | . . 2 Power . | . . . Propulsion 2 | . . 2 Utility . | . . . Weapon . | . . . Parts Attached 23 | 7 7 9 Power 2 | 1 1 . Engine 2 | 1 1 . Core . | . . . Reactor . | . . . Propulsion 9 | 2 2 5 Treads . | . . . Leg 5 | 2 2 1 Wheel . | . . . Hover 4 | . . 4 Flight . | . . . Utility 3 | 2 1 . Device 1 | 1 . . Storage 2 | 1 1 . Processor . | . . . Hackware . | . . . Protection . | . . . Artifact . | . . . Weapon 9 | 2 3 4 Energy Gun 5 | 1 2 2 Energy Cannon . | . . . Ballistic Gun 1 | 1 . . Ballistic Cannon . | . . . Launcher 1 | . . 1 Special Weapon 2 | . 1 1 Impact Weapon . | . . . Slashing Weapon . | . . . Piercing Weapon . | . . . Special Melee Weapon . | . . . Unidentified Prototypes . | . . . Parts Lost 11 | . 2 9 Power 1 | . . 1 Propulsion 6 | . 1 5 Utility . | . . . Weapon 4 | . 1 3 Highest Loss Streak 7 | . 1 7 To Critical Strikes . | . . . Average Slot Usage (%) 96 | . 99 63 Engine 13 | . 14 10 Leg 25 | . 27 2 Hover 1 | . . 15 Device 13 | . 14 11 Storage 13 | . 14 11 Energy Gun 20 | . 21 8 Ballistic Gun 3 | . 4 . Special Weapon 1 | . 1 . Peak Build Rating 10 | 7 9 10 Average Rating 7 | 4 7 6 On Entrance 5 | . 7 9 Naked Turns . | . . . Heaviest Build 21 | 14 21 21 Greatest Support 24 | 20 20 24 Greatest Overweight (x) 5 | . 1 5 Average Overweight (x) . | . . 1 Largest Inventory Capacity 10 | 8 10 10 Average Capacity 8 | 7 8 10 Most Carried 10 | 5 10 10 Average Carried 6 | 2 7 4 Final Capacity 10 | 8 10 10 Final Carried 10 | 4 10 3 Class Distribution -------------------- 97% | Mutant Dominant Class ---------------- Mutant | -10/Materials Mutant | -9/Materials Resources | -11 -10 -9 ----------- Run | Yrd Mat Mat Matter Collected 407 | 290 117 . Remotely . | . . . Salvage Created 805 | 69 492 244 Parts 63 | 13 31 19 Haulers Intercepted . | . . . Recyclers Shooed . | . . . Parts Field Recycled . | . . . Retrieved Matter . | . . . Parts Self-Destructed . | . . . Prevented . | . . . Kills | -11 -10 -9 ------- Run | Yrd Mat Mat Combat Hostiles Destroyed 18 | . 12 6 Guns 11 | . 9 2 Cannons 1 | . 1 . AOE 6 | . 2 4 Classes Destroyed 8 | 1 5 2 Builder 2 | . 1 1 Tunneler 4 | 4 . . Operator 1 | . 1 . Watcher 3 | . 2 1 Swarmer 1 | . 1 . Grunt 13 | . 11 2 Duelist 1 | . . 1 Sentry 3 | . . 3 Best Kill Streak 4 | 4 4 3 Combat Bots Only 3 | . 3 2 Max Kills in Single Turn 2 | 1 1 2 Gunslinging . | . . . Exploded 1 | . 1 1 Melee . | . . . Uniques/NPCs Destroyed . | . . . Combat | -11 -10 -9 -------- Run | Yrd Mat Mat Hostile Shots Fired 81 | . 51 30 Missed 22 | . 15 7 Damage Taken 1183 | . 652 531 Core 258 | . 78 180 Absorbed by Shields . | . . . Regen/Repaired (Parts) 97 | . 97 . Core Remaining (%) 84 | 100 68 . Volleys Fired 67 | 10 39 18 Largest 2 | 2 2 2 Hottest 105 | 60 105 105 Shots Fired 122 | 20 75 27 Gun 113 | 20 72 21 Cannon . | . . . Launcher 5 | . . 5 Special 4 | . 3 1 Kinetic 27 | 10 17 . Thermal 65 | 10 39 16 Explosive 5 | . . 5 Electromagnetic 25 | . 19 6 Robot Hit Streak 11 | 3 11 8 Robot Miss Streak 4 | 3 4 1 Penetration Max . | . . . Secondary Targets 5 | . 2 3 Max Gunslinging Chain 1 | . 1 1 Shots Hit Robots 79 | 9 51 19 Core Hits 56 | 5 27 24 Critical Kills . | . . . Critical Parts Destroyed . | . . . Critical Strikes . | . . . Melee Attacks . | . . . Impact . | . . . Slashing . | . . . Piercing . | . . . Sneak Attacks . | . . . Combat Hostiles . | . . . Follow-up Attacks . | . . . Damage Inflicted 1459 | 123 831 505 Guns 1032 | 123 656 253 Cannons . | . . . Explosions 375 | . 147 228 Melee . | . . . Ramming 4 | . 4 . Kinetic 228 | 87 141 . Thermal 708 | 36 483 189 Explosive 115 | . . 115 Electromagnetic 404 | . 203 201 Impact . | . . . Slashing . | . . . Piercing . | . . . Highest Corruption . | . . . Average Corruption . | . . . Corruption Purged . | . . . Corruption Blocked . | . . . Overload Shots . | . . . Overflow Damage 7 | . . 7 Projectiles . | . . . Explosions 7 | . . 7 Melee . | . . . Knockbacks . | . . . Impact . | . . . Kinetic . | . . . Secondary . | . . . Self-Inflicted Damage 130 | . 48 82 Shots 6 | . 2 4 Rammed . | . . . Targets Rammed 1 | . 1 . Kicked 1 | . 1 . Crushed . | . . . Highest Temperature 341 | . 222 341 Average Temperature 98 | . 54 224 Received Heat Transfer 252 | . 195 57 Effects 1 | . . 1 Interference 1 | . . 1 Siege Activations . | . . . Robots Corrupted . | . . . Combat Hostiles . | . . . Parts Fried 2 | . . 2 Impact Corruptions . | . . . Robots Melted . | . . . Combat Hostiles . | . . . Parts Melted 1 | . 1 . Heat Transferred 1493 | 75 984 434 Parts Sabotaged . | . . . Parts Stolen . | . . . Parts Stripped . | . . . Power Chain Reactions 3 | . 3 . Alert | -11 -10 -9 ------- Run | Yrd Mat Mat Peak Influence 233 | 20 233 230 Initial 60 | . 13 60 Average 66 | 6 69 105 Maximum Alert Level 1 | . 1 1 Low Security (%) 97 | 100 97 99 Level 1 2 | . 2 . Level 2 . | . . . Level 3 . | . . . Level 4 . | . . . Level 5 . | . . . High Security . | . . . Max Security . | . . . Squads Dispatched 5 | . 4 1 Investigation 2 | . 2 . Extermination . | . . . Reinforcement 3 | . 2 1 Assault . | . . . Garrison . | . . . Intercept . | . . . Searches Triggered . | . . . Construction Impeded 1 | . . 1 Haulers Reinforced . | . . . Active Scanning Responses . | . . . Cargo Convoy Interrupts . | . . . Stealth | -11 -10 -9 --------- Run | Yrd Mat Mat Distress Signals 3 | . 3 . Communications Jammed . | . . . Distress Signals . | . . . Times Spotted 28 | . 21 7 Peak Tracking Total 4 | . 4 3 Tactical Retreats 2 | . 2 . Traps | -11 -10 -9 ------- Run | Yrd Mat Mat Traps Triggered 1 | . 1 . Indirectly . | . . . Trap Hack Attempts . | . . . Triggered . | . . . Disarmed . | . . . Reprogrammed . | . . . Reused . | . . . Traps Extracted . | . . . Installed . | . . . Triggered . | . . . Machines | -11 -10 -9 ---------- Run | Yrd Mat Mat Machines Disabled 2 | . . 2 Max in Single Turn 2 | . . 2 Machines Repaired . | . . . Machines Dismantled . | . . . Machines Sabotaged . | . . . Overloaded Fab Kills . | . . . Hacking | -11 -10 -9 --------- Run | Yrd Mat Mat Machines Accessed 6 | . 6 . Terminals 5 | . 5 . Fabricators . | . . . Repair Stations 1 | . 1 . Recycling Units . | . . . Scanalyzers . | . . . Garrison Access . | . . . Total Hacks 22 | . 22 . Successful 11 | . 11 . Failed 11 | . 11 . Catastrophic 5 | . 5 . Database Lockouts . | . . . Manual 14 | . 14 . Terminals 17 | . 17 . Fabricators . | . . . Repair Stations 5 | . 5 . Recycling Units . | . . . Scanalyzers . | . . . Garrison Access . | . . . Terminal Hacks 5 | . 5 . Level Access Points 1 | . 1 . Branch Access Points 1 | . 1 . Alert Level 2 | . 2 . Hauler Manifests 1 | . 1 . Fabricator Hacks . | . . . Repair Station Hacks 4 | . 4 . Scan Component 2 | . 2 . Repair 2 | . 2 . Recycling Unit Hacks . | . . . Scanalyzer . | . . . Garrison Access Hacks . | . . . Unauthorized Hacks 2 | . 2 . Terminals 2 | . 2 . Botnet 2 | . 2 . Fabricators . | . . . Repair Stations . | . . . Recycling Units . | . . . Scanalyzers . | . . . Garrison Access . | . . . Data Cores Recovered . | . . . Used . | . . . Hacking Detections 6 | . 6 . Full Trace Events 2 | . 2 . Feedback Events . | . . . Feedback Blocked . | . . . Robot Schematics Acquired . | . . . Robots Built . | . . . Authchips . | . . . Time . | . . . Total Robot Build Rating . | . . . Part Schematics Acquired . | . . . Parts Built . | . . . Authchips . | . . . Time . | . . . Total Part Build Rating . | . . . Parts Repaired 2 | . 2 . Time 52 | . 52 . Parts Recycled . | . . . Recycled Matter . | . . . Retrieved Matter . | . . . Retrieved Components . | . . . Parts Scanalyzed . | . . . Part Schematics Acquired . | . . . Parts Damaged . | . . . Bothacking | -11 -10 -9 ------------ Run | Yrd Mat Mat Used RIF Installer . | . . . Robots Hacked . | . . . Non-combat . | . . . Combat . | . . . Robot Hacks Applied . | . . . Relay Couplers Released . | . . . Fabnet Peak Effective % . | . . . Robots Rewired . | . . . Allies Hacked . | . . . Hacks Repelled . | . . . Allies | -11 -10 -9 -------- Run | Yrd Mat Mat Total Allies . | . . . Largest Group . | . . . Highest-Rated Group . | . . . Highest-Rated Ally . | . . . Total Orders . | . . . Ally Attacks . | . . . Total Damage . | . . . Kills . | . . . Allies Corrupted . | . . . Allies Melted . | . . . Intel | -11 -10 -9 ------- Run | Yrd Mat Mat Robot Analysis Total . | . . . Derelict Logs Recovered . | . . . Drone Launches . | . . . Drone Recoveries . | . . . Exploration | -11 -10 -9 ------------- Run | Yrd Mat Mat Turns Passed 1284 | 121 1049 114 Spaces Moved 728 | 71 617 40 Core 26 | 17 . 9 Treads . | . . . Legs 679 | 54 617 8 Wheels . | . . . Hover 23 | . . 23 Flight . | . . . Fastest Speed 48 | 50 120 48 Average Speed 130 | 103 132 133 Slowest Speed 300 | 120 190 300 Overloaded Moves . | . . . Propulsion Burnouts . | . . . Robots Hopped . | . . . Cave-ins Triggered . | . . . Exploration Rate (%) 34 | 4 90 10 Regions Visited 2 Branch Regions . Pre-discovered Areas . | . . . Known Exits Taken 1 | . 1 . Unknown Exits Taken 1 | 1 . . Scrap Searched . | . . . Spaces Dug 2 | . 2 . Terrain Destroyed 43 | . 14 29 Melee . | . . . Projectile 2 | . 2 . AOE 41 | . 12 29 Terrain Rammed . | . . . Walls Destroyed . | . . . Machines Disabled . | . . . Actions | -11 -10 -9 --------- Run | Yrd Mat Mat Total 939 | 98 768 73 Wait 83 | . 83 . Move 726 | 70 616 40 Hop . | . . . Pick Up 30 | 11 16 3 Fast Attach . | . . . Attach 19 | 7 3 9 Detach . | . . . Swap 4 | . 4 . Drop 9 | . 6 3 Fire 67 | 10 39 18 Melee . | . . . Ram . | . . . Kick 1 | . 1 . Crush . | . . . Escape Stasis . | . . . Rewire . | . . . Trap . | . . . Miscellaneous . | . . . Route ------- -11/Scrapyard -10/Materials (discovered 4 exits: *Mat x3 / *Min) -9/Materials History --------- Turn | Location | Event 11 | -11/Scrapyard | Discovered new exit (range 15) 122 | -11/Scrapyard | Entered Materials 313 | -10/Materials | Build established: Mutant 341 | -10/Materials | Discovered new exit (range 4) 384 | -10/Materials | Discovered new exit (range 13) 585 | -10/Materials | Repaired Aluminum Leg 615 | -10/Materials | Repaired Hover Unit 711 | -10/Materials | Identified exit to Mines 752 | -10/Materials | Discovered new exit (range 3) 865 | -10/Materials | Identified exit to Materials 1171 | -10/Materials | Entered another Materials area 1171 | -9/Materials | Evolved 2 slots: Propulsion x2 1255 | -9/Materials | Lost 7 parts (4n3w) 1285 | -9/Materials | Self-destructed Last Messages --------------- 01275_ U-05 Engineer builds a Wall. 01275_ U-05 Engineer lays Concrete. 01275_ Ion Engine destroyed. 01275_ Destroyed Ion Engine. 01276_ U-05 Engineer builds a Wall. 01280_ U-05 Engineer lays Concrete. 01280_ K-01 Serf collects debris. 01281_ U-05 Engineer lays Concrete. 01282_ Y-45 Defender destroyed. 01283_ U-05 Engineer lays Concrete. 01284_ Neutrino Reactor explodes. 01284_ Y-45 Defender destroyed. 01284_ Neutrino Reactor explodes. 01284_ U-05 Engineer destroyed. 01284_ Door malfunctions. 01284_ Aluminum Leg destroyed. 01284_ Destroyed Aluminum Leg. 01284_ ALERT: Construction progress impeded, dispatching reinforcements to local area. 01284_ U-05 Engineer repairs door. Map ----- +----------------------------------------------------+ | ?????????????????????????????????????????????????? | | ?????????????????????????????????????????????????? | | ?????????????????????????????????????????????????? | | ?????????????????????????????????????????????????? | | ?????????????????????????????????????????????????? | | ?????????????????????????????????????????????????? | | ?????????????????????????????????????????????????? | | ?????????????????????????????????????????????????? | | ???????? ??????????????????????????????????????? | | ??????## ?????????????????????????????????????? | | ???? ?????????????????????????????????????? | | ???? ########?????????????????????????????? | | ??? ??????????????????????????????? | | ????# ????????????? ????????????????? | | ????# ???????????? ?????????????????? | | ????# ????????????? ?????????????????? | | ??### = ???????????? ??????????????????? | | ?## [% ########???? ???????????????????? | | ?# # ####+###?????????????????? | | ?# # """ ?????????????????? | | ?# %= # """ # ?????????????????? | | ?# [ !#=""" ?????????????????? | | ?# ####% %+! """ ""?????????????????? | | ????????????# # %* """ """????????????????? | | ????????????##!% # ! """ """ #??????????????? | | ?????????????# % #== @ #??????????????? | | ?????????????#[! #=%[ #??????????????? | | ?????????????# # ##########??????????????? | | ?????????????# # ????????????????????????? | | ?????????????# # #????????????????????????? | | ?????????????# # #????????????????????????? | | ?????????????# ########????????????????????????? | | ?????????????# #?######????????????????????????? | | ?????????????# #? #????????????????????????? | | ?????????????# # """ #????????????????????????? | | ?????????????# # """ #????????????????????????? | | ?????????????# + """ #????????????????????????? | | ?????????????# # #????????????????????????? | | ?????????????# # #????????????????????????? | | ?????????????# #?######????????????????????????? | | ?????????????# #???????????????????????????????? | | ?????????????# #???????????????????????????????? | | ?????????????# ############????????????????????? | | ?????????????# ?????????????????? | | ???????####### ?????????????????? | | == ############????????????????????? | | #???????????????????????????????? | | ??#### ##########???????????????????????????????? | | ?????????????????????????????????????????????????? | | ?????????????????????????????????????????????????? | +----------------------------------------------------+ Best States ------------- Heat Dissipation 28 Energy Generation 10 Energy Capacity 250 Matter Stores 300 Matter Capacity 300 Sight Range 16 Terrain Scan Density 10 Evasion (%) 55 Item Schematics ----------------- None Robot Schematics ------------------ None Fabricated ------------ Nothing Alien Tech Used ----------------- None Achievements -------------- None Challenges ------------ None Game ------ Seed PulseBlastAutocannon Manual? 0 Play Time 00:12:46 Cumulative 45.5 hours Start 2024.10.26 @ 20:49:12 End 2024.10.26 @ 21:00:16 Sessions 1 Manual Loads 0 Difficulty Rogue Special Mode None Game No. 61 Rogue 61 Adventurer 0 Explorer 0 Win Type - Total 1 Types 1/0/0/0/0/0/0/0/0 Lore% 24 Gallery% 38 Achievement% 35 Wizard Run 0 Options --------- Layout 1 ASCII 1 Keyboard 0 Movement Mouse Keybinds 0 Fullscreen 1 Font 24/Smallcaps Map View 50x35 Zoom Use 0% Tactical HUD 1 Map Filters NONE Filters NONE Steam 1 RUN: 603f01a7-b8b8-46f6-bf6d-73cb6b115dd9